2CCN - Level 2 Cost Centre Name,,9CCN - Level 9 Cost Centre Name,9CCC - Level 9 Cost Centre Code,9AN - Level 9 Account Name,9AC - Level 9 Account Code,Date posted,Date of transaction,Merchant Name,Merchant City,Merchant State,Merchant Zip Code,Originating Account Name,Originating Account Number,MCC/SIC Code,MCC Description,Original Amount,Currency,Conversion Rate,Billed Amount,Debit Credit,Reference Number,Statement Cycle,Account Name
Gloucester City Council,23UE,Museum of Gloucester,MU002,General Supplies/Materials,3025,27/02/2017,24/02/2017,POUNDLAND LTD 1167,GLOUCESTER,,GL1 1XH,REDACTED,556*********2362,5310,DISCOUNT STORES,2.5,Pound Sterling (826),1.000000000,2.5,Debit,05230657056320073668868,02/03/2017,GLOUCESTER CC
Gloucester City Council,23UE,Gloucester Life Museum,MU005,Catering Provisions,3103,02/03/2017,01/03/2017,ASDA SUPERSTORE,GLOUCESTER,GBR,GL1 1DS,REDACTED,556*********2362,5411,"GROCERY STORES, SUPERMARKETS",20.95,Pound Sterling (826),1.000000000,20.95,Debit,65377757061060328255057,02/03/2017,GLOUCESTER CC
Gloucester City Council,23UE,Robinswood Hill Trading Account,EP004,Grounds Maintenance,1100,13/02/2017,10/02/2017,PAYPAL *FASTCARDIRE,35314369001,GBR,TW91EH,REDACTED,556*********6734,5533,"AUTOMOTIVE PARTS, ACCESSORIES STORES",37.85,Pound Sterling (826),1.000000000,37.85,Debit,85130087041705990167237,02/03/2017,GLOUCESTER CC
Gloucester City Council,23UE,Members Support,DS002,Members Courses & Conferences,3607,24/02/2017,23/02/2017,RADISSON BLU HOTEL,BRISTOL,GBR,BS1 4BY,REDACTED,556*********3029,7011,"LODGING, HOTELS, MOTELS, RESORTS",130,Pound Sterling (826),1.000000000,130,Debit,65425157055020336377338,02/03/2017,GLOUCESTER CC
Gloucester City Council,23UE,Homelessness,HS002,B&B Payments,1303,03/02/2017,02/02/2017,TRAVELODGE GB0000,THAME,,OX9 3AT,REDACTED,556*********4774,3615,TRAVELODGE,261,Pound Sterling (826),1.000000000,261,Debit,55504437033298198454415,02/03/2017,GLOUCESTER CC
Gloucester City Council,23UE,Homelessness,HS002,B&B Payments,1303,03/02/2017,02/02/2017,TRAVELODGE GB0000,THAME,,OX9 3AT,REDACTED,556*********4774,3615,TRAVELODGE,58,Pound Sterling (826),1.000000000,58,Debit,55504437033298198542805,02/03/2017,GLOUCESTER CC
Gloucester City Council,23UE,Homelessness,HS002,B&B Payments,1303,03/02/2017,02/02/2017,TRAVELODGE GB0000,THAME,,OX9 3AT,REDACTED,556*********4774,3615,TRAVELODGE,-92,Pound Sterling (826),1.000000000,-92,Credit,55504437033295339661726,02/03/2017,GLOUCESTER CC
Gloucester City Council,23UE,Homelessness,HS002,B&B Payments,1303,06/02/2017,03/02/2017,TRAVELODGE GB0000,THAME,,OX9 3AT,REDACTED,556*********4774,3615,TRAVELODGE,170,Pound Sterling (826),1.000000000,170,Debit,55504437034298106677320,02/03/2017,GLOUCESTER CC
Gloucester City Council,23UE,Homelessness,HS002,B&B Payments,1303,07/02/2017,06/02/2017,TRAVELODGE GB0000,THAME,,OX9 3AT,REDACTED,556*********4774,3615,TRAVELODGE,388,Pound Sterling (826),1.000000000,388,Debit,55504437037298129191959,02/03/2017,GLOUCESTER CC
Gloucester City Council,23UE,Homelessness,HS002,B&B Payments,1303,07/02/2017,06/02/2017,TRAVELODGE GB0000,THAME,,OX9 3AT,REDACTED,556*********4774,3615,TRAVELODGE,384,Pound Sterling (826),1.000000000,384,Debit,55504437037298129306672,02/03/2017,GLOUCESTER CC
Gloucester City Council,23UE,Homelessness,HS002,B&B Payments,1303,07/02/2017,06/02/2017,TRAVELODGE GB0000,THAME,,OX9 3AT,REDACTED,556*********4774,3615,TRAVELODGE,381,Pound Sterling (826),1.000000000,381,Debit,55504437037298129206559,02/03/2017,GLOUCESTER CC
Gloucester City Council,23UE,Homelessness,HS002,B&B Payments,1303,07/02/2017,06/02/2017,TRAVELODGE GB0000,THAME,,OX9 3AT,REDACTED,556*********4774,3615,TRAVELODGE,58,Pound Sterling (826),1.000000000,58,Debit,55504437037298129227225,02/03/2017,GLOUCESTER CC
Gloucester City Council,23UE,Homelessness,HS002,B&B Payments,1303,08/02/2017,07/02/2017,TRAVELODGE GB0000,THAME,,OX9 3AT,REDACTED,556*********4774,3615,TRAVELODGE,393,Pound Sterling (826),1.000000000,393,Debit,55504437038298136831604,02/03/2017,GLOUCESTER CC
Gloucester City Council,23UE,Homelessness,HS002,B&B Payments,1303,08/02/2017,07/02/2017,TRAVELODGE GB0000,THAME,,OX9 3AT,REDACTED,556*********4774,3615,TRAVELODGE,414,Pound Sterling (826),1.000000000,414,Debit,55504437038298136825002,02/03/2017,GLOUCESTER CC
Gloucester City Council,23UE,Homelessness,HS002,B&B Payments,1303,10/02/2017,09/02/2017,TRAVELODGE GB0000,THAME,,OX9 3AT,REDACTED,556*********4774,3615,TRAVELODGE,47,Pound Sterling (826),1.000000000,47,Debit,55504437040298151677011,02/03/2017,GLOUCESTER CC
Gloucester City Council,23UE,Homelessness,HS002,B&B Payments,1303,14/02/2017,13/02/2017,TRAVELODGE GB0000,THAME,,OX9 3AT,REDACTED,556*********4774,3615,TRAVELODGE,335,Pound Sterling (826),1.000000000,335,Debit,55504437044298181089233,02/03/2017,GLOUCESTER CC
Gloucester City Council,23UE,Homelessness,HS002,B&B Payments,1303,14/02/2017,13/02/2017,TRAVELODGE GB0000,THAME,,OX9 3AT,REDACTED,556*********4774,3615,TRAVELODGE,432,Pound Sterling (826),1.000000000,432,Debit,55504437044298181087740,02/03/2017,GLOUCESTER CC
Gloucester City Council,23UE,Homelessness,HS002,B&B Payments,1303,14/02/2017,13/02/2017,TRAVELODGE GB0000,THAME,,OX9 3AT,REDACTED,556*********4774,3615,TRAVELODGE,335,Pound Sterling (826),1.000000000,335,Debit,55504437044298180989037,02/03/2017,GLOUCESTER CC
Gloucester City Council,23UE,Homelessness,HS002,B&B Payments,1303,21/02/2017,20/02/2017,TRAVELODGE GB0000,THAME,,OX9 3AT,REDACTED,556*********4774,3615,TRAVELODGE,437,Pound Sterling (826),1.000000000,437,Debit,55504437051298136882815,02/03/2017,GLOUCESTER CC
Gloucester City Council,23UE,Homelessness,HS002,B&B Payments,1303,21/02/2017,20/02/2017,TRAVELODGE GB0000,THAME,,OX9 3AT,REDACTED,556*********4774,3615,TRAVELODGE,798,Pound Sterling (826),1.000000000,798,Debit,55504437051298136900781,02/03/2017,GLOUCESTER CC
Gloucester City Council,23UE,Homelessness,HS002,B&B Payments,1303,21/02/2017,20/02/2017,TRAVELODGE GB0000,THAME,,OX9 3AT,REDACTED,556*********4774,3615,TRAVELODGE,397,Pound Sterling (826),1.000000000,397,Debit,55504437051298136884746,02/03/2017,GLOUCESTER CC
Gloucester City Council,23UE,Homelessness,HS002,B&B Payments,1303,22/02/2017,21/02/2017,TRAVELODGE GB0000,THAME,,OX9 3AT,REDACTED,556*********4774,3615,TRAVELODGE,209,Pound Sterling (826),1.000000000,209,Debit,55504437052298144385412,02/03/2017,GLOUCESTER CC
Gloucester City Council,23UE,Homelessness,HS002,B&B Payments,1303,27/02/2017,24/02/2017,TRAVELODGE GB0000,THAME,,OX9 3AT,REDACTED,556*********4774,3615,TRAVELODGE,166,Pound Sterling (826),1.000000000,166,Debit,55504437055298167871089,02/03/2017,GLOUCESTER CC
Gloucester City Council,23UE,Homelessness,HS002,B&B Payments,1303,28/02/2017,27/02/2017,TRAVELODGE GB0000,THAME,,OX9 3AT,REDACTED,556*********4774,3615,TRAVELODGE,397,Pound Sterling (826),1.000000000,397,Debit,55504437058298191353374,02/03/2017,GLOUCESTER CC
Gloucester City Council,23UE,Homelessness,HS002,B&B Payments,1303,28/02/2017,27/02/2017,TRAVELODGE GB0000,THAME,,OX9 3AT,REDACTED,556*********4774,3615,TRAVELODGE,397,Pound Sterling (826),1.000000000,397,Debit,55504437058298191358167,02/03/2017,GLOUCESTER CC
Gloucester City Council,23UE,Docks Complex - Services,AM006,Equipment and Furniture,3001,03/02/2017,02/02/2017,B & Q 1179,GLOUCESTER,,GL1 2SG,REDACTED,556*********1053,5211,LUMBER AND BUILDING MATERIALS STORES,3.88,Pound Sterling (826),1.000000000,3.88,Debit,05230657034300071815205,02/03/2017,GLOUCESTER CC
Gloucester City Council,23UE,Docks Complex - Services,AM006,Water Coolers,3106,13/02/2017,10/02/2017,SAINSBURYS 2221,GLOUCESTER,GBR,GL2 5SA,REDACTED,556*********1053,5411,"GROCERY STORES, SUPERMARKETS",2,Pound Sterling (826),1.000000000,2,Debit,25425157042030113757321,02/03/2017,GLOUCESTER CC
Gloucester City Council,23UE,Kings Quarter Development,XCKQD,Contract Works/Services,9001,28/02/2017,27/02/2017,STATIONERY OFFICE BOOK,LONDON SW8,,NR3 1PD,REDACTED,556*********1053,5942,BOOK STORES,27.8,Pound Sterling (826),1.000000000,27.8,Debit,55541967059469001916557,02/03/2017,GLOUCESTER CC
Gloucester City Council,23UE,Council Streetcare Team,NE002,External Training Course Fees,0550,22/02/2017,21/02/2017,ALPHA SAFETY TRAINING,SWANSEA,GBR,SA5 4DJ,REDACTED,556*********2263,8299,SCHOOLS AND EDUCATIONAL SERVICES NOT ELSEWHERE CLASSIFIED,146.5,Pound Sterling (826),1.000000000,146.5,Debit,55184227052890534078458,02/03/2017,GLOUCESTER CC
Gloucester City Council,23UE,Housing Strategy & Enabling,SH001,Mileage and Travel Allowances,2401,17/02/2017,16/02/2017,Trainline,London,GBR,1445,REDACTED,556*********6959,4112,PASSENGER RAILWAYS,78.54,Pound Sterling (826),1.000000000,78.54,Debit,85130087047706192677373,02/03/2017,GLOUCESTER CC
Gloucester City Council,23UE,Museum of Gloucester Catering,MU004,Catering Provisions,3103,10/02/2017,09/02/2017,BOOKER LIMITED GLOUCES,GLOUCESTER,GBR,GL4 3RT,REDACTED,556*********5775,5811,CATERERS,41.94,Pound Sterling (826),1.000000000,41.94,Debit,55184227040920407596982,02/03/2017,GLOUCESTER CC
Gloucester City Council,23UE,Gloucester Life Museum,MU005,Catering Provisions,3103,10/02/2017,09/02/2017,BOOKER LIMITED GLOUCES,GLOUCESTER,GBR,GL4 3RT,REDACTED,556*********5775,5811,CATERERS,41.94,Pound Sterling (826),1.000000000,41.94,Debit,55184227040920407596982,02/03/2017,GLOUCESTER CC
Gloucester City Council,23UE,Guildhall Bar & Caf�,GH005,Catering Provisions,3103,03/02/2017,02/02/2017,ASDA SUPERSTORE,GLOUCESTER,GBR,GL1 1DS,REDACTED,556*********5661,5411,"GROCERY STORES, SUPERMARKETS",74.21,Pound Sterling (826),1.000000000,74.21,Debit,45377757034070211083827,02/03/2017,GLOUCESTER CC
Gloucester City Council,23UE,Guildhall Bar & Caf�,GH005,Catering Provisions,3103,06/02/2017,03/02/2017,SAINSBURYS 2221,GLOUCESTER,GBR,GL2 5SA,REDACTED,556*********5661,5411,"GROCERY STORES, SUPERMARKETS",14.3,Pound Sterling (826),1.000000000,14.3,Debit,25425157035080110207084,02/03/2017,GLOUCESTER CC
Gloucester City Council,23UE,Guildhall Bar & Caf�,GH005,Catering Provisions,3103,07/02/2017,06/02/2017,ALDI,GLOUCESTER,,GL1 5BJ,REDACTED,556*********5661,5411,"GROCERY STORES, SUPERMARKETS",14.82,Pound Sterling (826),1.000000000,14.82,Debit,55541967038495000925576,02/03/2017,GLOUCESTER CC
Gloucester City Council,23UE,Guildhall Bar & Caf�,GH005,Catering Provisions,3103,09/02/2017,08/02/2017,THE RANGE,GLOUCESTER,,GL4 3BY,REDACTED,556*********5661,5311,DEPARTMENT STORES,9.96,Pound Sterling (826),1.000000000,9.96,Debit,05230657040580072235634,02/03/2017,GLOUCESTER CC
Gloucester City Council,23UE,Guildhall Bar & Caf�,GH005,Catering Provisions,3103,09/02/2017,08/02/2017,BOOKER LIMITED GLOUCES,GLOUCESTER,GBR,GL4 3RT,REDACTED,556*********5661,5811,CATERERS,188.92,Pound Sterling (826),1.000000000,188.92,Debit,55184227039920395653624,02/03/2017,GLOUCESTER CC
Gloucester City Council,23UE,Guildhall Bar & Caf�,GH005,Catering Provisions,3103,14/02/2017,13/02/2017,ICELAND,GLOUCESTER,GBR,GL1 1SA,REDACTED,556*********5661,5411,"GROCERY STORES, SUPERMARKETS",8.71,Pound Sterling (826),1.000000000,8.71,Debit,35377757045040155210726,02/03/2017,GLOUCESTER CC
Gloucester City Council,23UE,Guildhall Bar & Caf�,GH005,Catering Provisions,3103,20/02/2017,17/02/2017,SAINSBURYS 2221,GLOUCESTER,GBR,GL2 5SA,REDACTED,556*********5661,5411,"GROCERY STORES, SUPERMARKETS",63.05,Pound Sterling (826),1.000000000,63.05,Debit,25425157049080123597871,02/03/2017,GLOUCESTER CC
Gloucester City Council,23UE,Guildhall Bar & Caf�,GH005,Catering Provisions,3103,21/02/2017,20/02/2017,ICELAND,GLOUCESTER,GBR,GL1 1SA,REDACTED,556*********5661,5411,"GROCERY STORES, SUPERMARKETS",7.75,Pound Sterling (826),1.000000000,7.75,Debit,35377757052090152748335,02/03/2017,GLOUCESTER CC
Gloucester City Council,23UE,Guildhall Bar & Caf�,GH005,Catering Provisions,3103,21/02/2017,20/02/2017,MARKS&SPENCER PLC,GLOUCESTER,GBR,GL1 1PH,REDACTED,556*********5661,5411,"GROCERY STORES, SUPERMARKETS",2,Pound Sterling (826),1.000000000,2,Debit,35377757052090167161805,02/03/2017,GLOUCESTER CC
Gloucester City Council,23UE,Guildhall Bar & Caf�,GH005,Catering Provisions,3103,23/02/2017,22/02/2017,LIDL UK,STOCKTON ON T,GBR,GL4 4LP,REDACTED,556*********5661,5411,"GROCERY STORES, SUPERMARKETS",7.96,Pound Sterling (826),1.000000000,7.96,Debit,25377757054010084432997,02/03/2017,GLOUCESTER CC
Gloucester City Council,23UE,Guildhall Bar & Caf�,GH005,Catering Provisions,3103,24/02/2017,23/02/2017,TESCO STORES (6819),GLOUCESTER,GBR,GL1 1TP,REDACTED,556*********5661,5411,"GROCERY STORES, SUPERMARKETS",3.8,Pound Sterling (826),1.000000000,3.8,Debit,55377757055020324789292,02/03/2017,GLOUCESTER CC
Gloucester City Council,23UE,Guildhall Bar & Caf�,GH005,Catering Provisions,3103,24/02/2017,23/02/2017,TESCO STORES 2581,GLOUCESTER,GBR,GL1 2SG,REDACTED,556*********5661,5411,"GROCERY STORES, SUPERMARKETS",33.25,Pound Sterling (826),1.000000000,33.25,Debit,45377757055020271515972,02/03/2017,GLOUCESTER CC
Gloucester City Council,23UE,Guildhall Bar & Caf�,GH005,Catering Provisions,3103,27/02/2017,25/02/2017,CO-OPERATIVE FOOD,GLOUCESTER,,GL1 1EA,REDACTED,556*********5661,5411,"GROCERY STORES, SUPERMARKETS",7.84,Pound Sterling (826),1.000000000,7.84,Debit,05230657057470077113087,02/03/2017,GLOUCESTER CC
Gloucester City Council,23UE,Members Support,DS002,Public Transport - Staff,2402,09/02/2017,08/02/2017,Trainline,London,GBR,1445,REDACTED,556*********3822,4112,PASSENGER RAILWAYS,28.61,Pound Sterling (826),1.000000000,28.61,Debit,85130087039705941337867,02/03/2017,GLOUCESTER CC
Gloucester City Council,23UE,Homelessness,HS002,Public Transport - Staff,2402,09/02/2017,08/02/2017,Trainline,London,GBR,1445,REDACTED,556*********3822,4112,PASSENGER RAILWAYS,113.83,Pound Sterling (826),1.000000000,113.83,Debit,85130087039705941338667,02/03/2017,GLOUCESTER CC
Gloucester City Council,23UE,Managing Director & Directors,MT001,Public Transport - Staff,2402,20/02/2017,17/02/2017,Trainline,London,GBR,1445,REDACTED,556*********3822,4112,PASSENGER RAILWAYS,72.93,Pound Sterling (826),1.000000000,72.93,Debit,85130087048706225471538,02/03/2017,GLOUCESTER CC
Gloucester City Council,23UE,Members Support,DS002,Members Travel Expenses,3609,20/02/2017,17/02/2017,Trainline,London,GBR,1445,REDACTED,556*********3822,4112,PASSENGER RAILWAYS,145.86,Pound Sterling (826),1.000000000,145.86,Debit,85130087048706225471538,02/03/2017,GLOUCESTER CC
Gloucester City Council,23UE,Contact Centre,CT001,General Supplies/Materials,3025,20/02/2017,17/02/2017,CUT KEYS DIRECT LI,DOVER,,CT15 5DB,REDACTED,556*********3822,7399,BUSINESS SERVICES NOT ELSEWHERE CLASSIFIED,6.72,Pound Sterling (826),1.000000000,6.72,Debit,55504437048174115346559,02/03/2017,GLOUCESTER CC
Gloucester City Council,23UE,Docks Complex - Services,AM006,Equipment and Furniture,3001,24/02/2017,23/02/2017,Amazon UK Marketplace,800-279-6620,LUX,L2338,REDACTED,556*********3822,5942,BOOK STORES,24.95,Pound Sterling (826),1.000000000,24.95,Debit,55204727054000325711118,02/03/2017,GLOUCESTER CC
Gloucester City Council,23UE,Members Support,DS002,Members Travel Expenses,3609,27/02/2017,24/02/2017,Trainline,London,GBR,1445,REDACTED,556*********3822,4112,PASSENGER RAILWAYS,138.82,Pound Sterling (826),1.000000000,138.82,Debit,85130087055707440288822,02/03/2017,GLOUCESTER CC
Gloucester City Council,23UE,Planning Policy & Heritage,PL004,Public Transport - Staff,2402,27/02/2017,24/02/2017,Trainline,London,GBR,1445,REDACTED,556*********3822,4112,PASSENGER RAILWAYS,116.59,Pound Sterling (826),1.000000000,116.59,Debit,85130087055707440292808,02/03/2017,GLOUCESTER CC
Gloucester City Council,23UE,Vehicles,CT002,Fuel - Vehicles/Plant,2102,27/02/2017,24/02/2017,TEXWESTGATESERVICE,887001GL12RS,,GL1 2RN,REDACTED,556*********3822,5541,SERVICE STATIONS,20,Pound Sterling (826),1.000000000,20,Debit,05230657056670072710529,02/03/2017,GLOUCESTER CC
Gloucester City Council,23UE,Gloucester Guildhall,GH001,Public Transport - Staff,2402,01/03/2017,28/02/2017,Trainline,London,GBR,1445,REDACTED,556*********3822,4112,PASSENGER RAILWAYS,58.81,Pound Sterling (826),1.000000000,58.81,Debit,85130087059708562341593,02/03/2017,GLOUCESTER CC
Gloucester City Council,23UE,Head of Regeneration & Economic Development,MT005,Public Transport - Staff,2402,01/03/2017,28/02/2017,Trainline,London,GBR,1445,REDACTED,556*********3822,4112,PASSENGER RAILWAYS,58.8,Pound Sterling (826),1.000000000,58.8,Debit,85130087059708562341593,02/03/2017,GLOUCESTER CC
Gloucester City Council,23UE,Vehicles,CT002,Fuel - Vehicles/Plant,2102,01/03/2017,28/02/2017,TEXWESTGATESERVICE,887001GL12RS,,GL1 2RN,REDACTED,556*********3822,5541,SERVICE STATIONS,50.16,Pound Sterling (826),1.000000000,50.16,Debit,05230657060580075564365,02/03/2017,GLOUCESTER CC
Gloucester City Council,23UE,Planning Policy & Heritage,PL004,Public Transport - Staff,2402,01/03/2017,28/02/2017,TRAINLINE,Rail Tickets,GBR,1445,REDACTED,556*********3822,4112,PASSENGER RAILWAYS,-102.8,Pound Sterling (826),1.000000000,-102.8,Credit,85130087059708556852860,02/03/2017,GLOUCESTER CC
Gloucester City Council,23UE,Vehicles,CT002,Fuel - Vehicles/Plant,2102,02/03/2017,01/03/2017,TEXWESTGATESERVICE,887001GL12RS,,GL1 2RN,REDACTED,556*********3822,5541,SERVICE STATIONS,63,Pound Sterling (826),1.000000000,63,Debit,05230657061490079242373,02/03/2017,GLOUCESTER CC
Gloucester City Council,23UE,Members Support,DS002,Public Transport - Staff,2402,02/03/2017,01/03/2017,TRAINLINE,Rail Tickets,GBR,1445,REDACTED,556*********3822,4112,PASSENGER RAILWAYS,-17.3,Pound Sterling (826),1.000000000,-17.3,Credit,85130087060708601321009,02/03/2017,GLOUCESTER CC
Gloucester City Council,23UE,Economic Development,ED001,Public Transport - Staff,2402,14/02/2017,13/02/2017,Trainline,London,GBR,1445,REDACTED,556*********4824,4112,PASSENGER RAILWAYS,142.6,Pound Sterling (826),1.000000000,142.6,Debit,85130087044706089753264,02/03/2017,GLOUCESTER CC
Gloucester City Council,23UE,Guildhall Events,GH002,Supplies For Resale,3020,03/02/2017,02/02/2017,MIPERMIT PARKING-DOM,INTERNET,GBR,SN15 5FD,REDACTED,556*********8256,7523,AUTOMOBILE PARKING LOTS AND GARAGES,40,Pound Sterling (826),1.000000000,40,Debit,25425157034070101858822,02/03/2017,GLOUCESTER CC
Gloucester City Council,23UE,Guildhall Events,GH002,Supplies For Resale,3020,03/02/2017,02/02/2017,MIPERMIT PARKING-DOM,INTERNET,GBR,SN15 5FD,REDACTED,556*********8256,7523,AUTOMOBILE PARKING LOTS AND GARAGES,10,Pound Sterling (826),1.000000000,10,Debit,25425157034070101859374,02/03/2017,GLOUCESTER CC
Gloucester City Council,23UE,Blackfriars,GH010,Advertising & Publicity,3404,09/02/2017,08/02/2017,VISTAPR*VistaPrint.uk,080-0028825,NLD,LW 5928,REDACTED,556*********8256,2741,MISCELLANEOUS PUBLISHING & PRINTING,120.62,Pound Sterling (826),1.000000000,120.62,Debit,55204727039000725735469,02/03/2017,GLOUCESTER CC
Gloucester City Council,23UE,Gloucester Guildhall,GH001,Equipment and Furniture,3001,09/02/2017,08/02/2017,Amazon UK Marketplace,800-279-6620,LUX,L2338,REDACTED,556*********8256,5942,BOOK STORES,5.75,Pound Sterling (826),1.000000000,5.75,Debit,55204727039000659774989,02/03/2017,GLOUCESTER CC
Gloucester City Council,23UE,Guildhall Bar & Caf�,GH005,Equipment and Furniture,3001,09/02/2017,08/02/2017,Amazon UK Marketplace,800-279-6620,LUX,L2338,REDACTED,556*********8256,5942,BOOK STORES,30.09,Pound Sterling (826),1.000000000,30.09,Debit,55204727039000720399766,02/03/2017,GLOUCESTER CC
Gloucester City Council,23UE,Guildhall Cinema,GH003,Equipment and Furniture,3001,09/02/2017,07/02/2017,PAYPAL *EBUYER UK,35314369001,GBR,DN147UW,REDACTED,556*********8256,5732,ELECTRONIC SALES,24.3,Pound Sterling (826),1.000000000,24.3,Debit,85130087039705910892868,02/03/2017,GLOUCESTER CC
Gloucester City Council,23UE,Gloucester Guildhall,GH001,Public Transport - Staff,2402,10/02/2017,09/02/2017,VIRGINTRAINSEC SERVCS,YORK 4400,,YO1 6HT,REDACTED,556*********8256,4112,PASSENGER RAILWAYS,34.6,Pound Sterling (826),1.000000000,34.6,Debit,55504437040160393500288,02/03/2017,GLOUCESTER CC
Gloucester City Council,23UE,Guildhall Events,GH002,General Supplies/Materials,3025,14/02/2017,13/02/2017,POST OFFICE COUNTER,GLOUCESTER,,GL1 1AD,REDACTED,556*********8256,9402,POSTAGE STAMPS,26.04,Pound Sterling (826),1.000000000,26.04,Debit,55504437044194281012052,02/03/2017,GLOUCESTER CC
Gloucester City Council,23UE,Gloucester Guildhall,GH001,General Supplies/Materials,3025,14/02/2017,13/02/2017,SCREWFIX DIRECT,YEOVIL,,BA22 8RT,REDACTED,556*********8256,5211,LUMBER AND BUILDING MATERIALS STORES,188.7,Pound Sterling (826),1.000000000,188.7,Debit,05230657045570076468021,02/03/2017,GLOUCESTER CC
Gloucester City Council,23UE,Gloucester Guildhall,GH001,Equipment and Furniture,3001,14/02/2017,13/02/2017,STUDIO SPARES,0208 2089930,,NW2 7JR,REDACTED,556*********8256,5732,ELECTRONIC SALES,75.49,Pound Sterling (826),1.000000000,75.49,Debit,05230657045870079262904,02/03/2017,GLOUCESTER CC
Gloucester City Council,23UE,Gloucester Guildhall,GH001,General Supplies/Materials,3025,15/02/2017,14/02/2017,WILKO RETAIL LIMIT,GLOUCESTER 14,,GL1 1SL,REDACTED,556*********8256,5722,HOUSEHOLD APPLIANCE STORES,31,Pound Sterling (826),1.000000000,31,Debit,05230657046620071091903,02/03/2017,GLOUCESTER CC
Gloucester City Council,23UE,Guildhall Events,GH002,Supplies For Resale,3020,16/02/2017,15/02/2017,MIPERMIT PARKING-DOM,INTERNET,GBR,SN15 5FD,REDACTED,556*********8256,7523,AUTOMOBILE PARKING LOTS AND GARAGES,30,Pound Sterling (826),1.000000000,30,Debit,25425157047060100457069,02/03/2017,GLOUCESTER CC
Gloucester City Council,23UE,Gloucester Guildhall,GH001,Equipment and Furniture,3001,17/02/2017,16/02/2017,ARGOS LTD,GLOUCESTER,,GL1 1QN,REDACTED,556*********8256,5310,DISCOUNT STORES,13.99,Pound Sterling (826),1.000000000,13.99,Debit,05230657048040074868603,02/03/2017,GLOUCESTER CC
Gloucester City Council,23UE,Guildhall Events,GH002,Supplies For Resale,3020,20/02/2017,17/02/2017,MIPERMIT PARKING-DOM,INTERNET,GBR,SN15 5FD,REDACTED,556*********8256,7523,AUTOMOBILE PARKING LOTS AND GARAGES,10,Pound Sterling (826),1.000000000,10,Debit,25425157049080118126421,02/03/2017,GLOUCESTER CC
Gloucester City Council,23UE,Guildhall Events,GH002,Advertising & Publicity,3404,20/02/2017,17/02/2017,WWW.INSTANTPRINT.C,01709 382202,,S63 5DR,REDACTED,556*********8256,7338,QUICK-COPY AND REPRODUCTION SERVICES,27.99,Pound Sterling (826),1.000000000,27.99,Debit,05230657049200077595277,02/03/2017,GLOUCESTER CC
Gloucester City Council,23UE,Gloucester Guildhall,GH001,Equipment and Furniture,3001,20/02/2017,18/02/2017,PAYPAL *123BRACKETS,35314369001,GBR,TW91EH,REDACTED,556*********8256,5817,DIGITAL GOODS - APPLICATIONS (EXLDG GAME,16.95,Pound Sterling (826),1.000000000,16.95,Debit,85130087050707228152914,02/03/2017,GLOUCESTER CC
Gloucester City Council,23UE,Gloucester Guildhall,GH001,Equipment and Furniture,3001,22/02/2017,21/02/2017,CURRYS ONLINE,HEMEL HEMPSTE,GBR,HP2 7JG,REDACTED,556*********8256,5732,ELECTRONIC SALES,299,Pound Sterling (826),1.000000000,299,Debit,45377757053000284666246,02/03/2017,GLOUCESTER CC
Gloucester City Council,23UE,Gloucester Guildhall,GH001,Equipment and Furniture,3001,23/02/2017,21/02/2017,EBUYER (UK) LTD,SHEFFIELD,GBR,DN14 7UW,REDACTED,556*********8256,5722,HOUSEHOLD APPLIANCE STORES,425.75,Pound Sterling (826),1.000000000,425.75,Debit,15425157054010025107696,02/03/2017,GLOUCESTER CC
Gloucester City Council,23UE,Gloucester Guildhall,GH001,Equipment and Furniture,3001,23/02/2017,21/02/2017,CPC,Leeds,GBR,LS12 2NE,REDACTED,556*********8256,5065,ELECTRICAL PARTS AND EQUIPMENT,69.9,Pound Sterling (826),1.000000000,69.9,Debit,85130087053707362481811,02/03/2017,GLOUCESTER CC
Gloucester City Council,23UE,Guildhall Events,GH002,General Supplies/Materials,3025,27/02/2017,23/02/2017,GLOUCESTER CC,GLOUCESTER,GBR,GL1 2EQ,REDACTED,556*********8256,9399,GOVERNMENT SERVICES NOT ELSEWHERE CLASSIFIED,5,Pound Sterling (826),1.000000000,5,Debit,15425157056030026821457,02/03/2017,GLOUCESTER CC
Gloucester City Council,23UE,Guildhall Events,GH002,General Supplies/Materials,3025,27/02/2017,23/02/2017,GLOUCESTER CC,GLOUCESTER,GBR,GL1 2EQ,REDACTED,556*********8256,9399,GOVERNMENT SERVICES NOT ELSEWHERE CLASSIFIED,5,Pound Sterling (826),1.000000000,5,Debit,15425157056030026821499,02/03/2017,GLOUCESTER CC
Gloucester City Council,23UE,Guildhall Events,GH002,General Supplies/Materials,3025,27/02/2017,23/02/2017,GLOUCESTER CC,GLOUCESTER,GBR,GL1 2EQ,REDACTED,556*********8256,9399,GOVERNMENT SERVICES NOT ELSEWHERE CLASSIFIED,5,Pound Sterling (826),1.000000000,5,Debit,15425157056030026821515,02/03/2017,GLOUCESTER CC
Gloucester City Council,23UE,Guildhall Events,GH002,General Supplies/Materials,3025,27/02/2017,23/02/2017,GLOUCESTER CC,GLOUCESTER,GBR,GL1 2EQ,REDACTED,556*********8256,9399,GOVERNMENT SERVICES NOT ELSEWHERE CLASSIFIED,-5,Pound Sterling (826),1.000000000,-5,Credit,15425157056030026821465,02/03/2017,GLOUCESTER CC
Gloucester City Council,23UE,Guildhall Events,GH002,General Supplies/Materials,3025,27/02/2017,23/02/2017,GLOUCESTER CC,GLOUCESTER,GBR,GL1 2EQ,REDACTED,556*********8256,9399,GOVERNMENT SERVICES NOT ELSEWHERE CLASSIFIED,-5,Pound Sterling (826),1.000000000,-5,Credit,15425157056030026821507,02/03/2017,GLOUCESTER CC
Gloucester City Council,23UE,Guildhall Events,GH002,General Supplies/Materials,3025,27/02/2017,23/02/2017,GLOUCESTER CC,GLOUCESTER,GBR,GL1 2EQ,REDACTED,556*********8256,9399,GOVERNMENT SERVICES NOT ELSEWHERE CLASSIFIED,-5,Pound Sterling (826),1.000000000,-5,Credit,15425157056030026821523,02/03/2017,GLOUCESTER CC
Gloucester City Council,23UE,Blackfriars,GH010,Advertising & Publicity,3404,01/03/2017,28/02/2017,FACEBK JC2QFCEEV2,www.fb.me/ads,IRL,2,REDACTED,556*********8256,7311,ADVERTISING SERVICES,10,Pound Sterling (826),1.000000000,10,Debit,15265677059650546291530,02/03/2017,GLOUCESTER CC
Gloucester City Council,23UE,Guildhall Events,GH002,Advertising & Publicity,3404,01/03/2017,28/02/2017,FACEBK 9K6SZBE6M2,www.fb.me/ads,IRL,2,REDACTED,556*********8256,7311,ADVERTISING SERVICES,14.9,Pound Sterling (826),1.000000000,14.9,Debit,15265677059504656091539,02/03/2017,GLOUCESTER CC
Gloucester City Council,23UE,Business Transformation,BI006,ICT New Hardware,3523,03/02/2017,02/02/2017,Amazon UK Marketplace,800-279-6620,LUX,L2338,REDACTED,556*********3063,5942,BOOK STORES,18.73,Pound Sterling (826),1.000000000,18.73,Debit,55204727033000064091777,02/03/2017,GLOUCESTER CC
Gloucester City Council,23UE,Business Transformation,BI006,"ICT Software, Licences & Support",3521,03/02/2017,02/02/2017,TOTAL ID LTD,WHITCHURCH,GBR,SY13 2EH,REDACTED,556*********3063,5943,"STATIONERY, OFFICE AND SCHOOL SUPPLY STO",300,Pound Sterling (826),1.000000000,300,Debit,15425157034070028850572,02/03/2017,GLOUCESTER CC
Gloucester City Council,23UE,Business Transformation,BI006,ICT New Hardware,3523,06/02/2017,03/02/2017,Amazon UK Marketplace,800-279-6620,LUX,L2338,REDACTED,556*********3063,5942,BOOK STORES,21.96,Pound Sterling (826),1.000000000,21.96,Debit,55204727034000778237889,02/03/2017,GLOUCESTER CC
Gloucester City Council,23UE,In House Training,HR002,External Training Course Fees,0550,09/02/2017,08/02/2017,WWW.CIPS.ORG,0845 8801188,,PE9 3NZ,REDACTED,556*********3063,8699,MEMBERSHIP ORGANIZATIONS NOT ELSEWHERE CLASSIFIED,123.42,Pound Sterling (826),1.000000000,123.42,Debit,05230657040180079926705,02/03/2017,GLOUCESTER CC
Gloucester City Council,23UE,Grants to Voluntary sector,VS001,Grant Payments,3901,13/02/2017,10/02/2017,APPLE ONLINE STORE GBP,0845-600-1683,IRL,UNKNOWN,REDACTED,556*********3063,5732,ELECTRONIC SALES,379,Pound Sterling (826),1.000000000,379,Debit,55204727041000862520811,02/03/2017,GLOUCESTER CC
Gloucester City Council,23UE,Civica Admin Charges,BI002,Professional Advice/Consultants,3952,15/02/2017,14/02/2017,HMCOURTS-SERVICE.G,01452420100,,GL1 2ZG,REDACTED,556*********3063,9222,FINES,2535,Pound Sterling (826),1.000000000,2535,Debit,05230657046480071566960,02/03/2017,GLOUCESTER CC
Gloucester City Council,23UE,Vehicles,CT002,Hire of Vehicles/Plant,2301,20/02/2017,17/02/2017,ENTERPRISE,01452 419222,,GL2 5HY,REDACTED,556*********3063,3405,ENTERPRISE RENT-A-CAR,380.02,Pound Sterling (826),1.000000000,380.02,Debit,05230657050040070386332,02/03/2017,GLOUCESTER CC
Gloucester City Council,23UE,Vehicles,CT002,Hire of Vehicles/Plant,2301,20/02/2017,17/02/2017,ENTERPRISE,01452 419222,,GL2 5HY,REDACTED,556*********3063,3405,ENTERPRISE RENT-A-CAR,425.04,Pound Sterling (826),1.000000000,425.04,Debit,05230657050050070386349,02/03/2017,GLOUCESTER CC
Gloucester City Council,23UE,Business Transformation,BI006,ICT New Hardware,3523,24/02/2017,24/02/2017,Amazon UK Marketplace,800-279-6620,LUX,L2338,REDACTED,556*********3063,5942,BOOK STORES,5.49,Pound Sterling (826),1.000000000,5.49,Debit,55204727055000547052621,02/03/2017,GLOUCESTER CC
